bitfinex/quotes_SOLUSD_20240616
["timestamp","ask_amount","ask_price","bid_price","bid_amount"]
[1718574138742,5.3,148.82,148.76,5.3]
[1718574138941,6.99798517,148.83,148.77,5.3]
[1718574139259,12.29798517,148.83,148.77,5.3]
[1718574139662,14.78398517,148.83,148.77,5.3]
[1718574140340,14.78398517,148.83,148.74,0.17]
[1718574140541,14.78398517,148.83,148.76,5.3]
[1718574141047,7.786,148.83,148.76,5.3]
[1718574141567,2.486,148.84,148.76,5.3]
[1718574141780,25.3,148.84,148.78,16.6618]
[1718574142074,20.0,148.84,148.78,21.9618]
[1718574142258,20.0,148.84,148.78,16.6618]
[1718574142576,25.3,148.84,148.78,16.6618]
[1718574142765,25.3,148.84,148.78,21.9618]
[1718574143371,20.0,148.84,148.78,21.9618]
[1718574143580,25.3,148.84,148.78,21.9618]
[1718574144166,20.0,148.84,148.79,5.3]
[1718574144372,7.7857,148.85,148.79,5.3]
[1718574144865,9.9423,148.86,148.79,5.3]
[1718574145071,2.4854,148.87,148.81,5.3]
[1718574145272,17.3958,148.89,148.82,0.17]
[1718574145454,17.3958,148.89,148.78,16.6618]
[1718574145455,5.3,148.85,148.78,16.6618]
[1718574145774,17.3969,148.88,148.78,16.6618]
[1718574146072,2.4854,148.87,148.8,5.3]
[1718574146244,2.4854,148.87,148.79,0.17]
[1718574146245,20.0,148.87,148.81,5.3]
[1718574146446,5.3,148.87,148.81,5.3]
[1718574146662,44.8529,148.88,148.81,5.3]
[1718574146866,7.7853,148.87,148.81,5.3]
[1718574147072,20.0,148.88,148.81,5.3]
[1718574147250,2.4853,148.87,148.82,5.3]
[1718574147458,20.0,148.87,148.81,5.47]
[1718574147845,22.4853,148.87,148.81,5.47]
[1718574148072,20.0,148.87,148.81,5.47]
[1718574148578,20.0,148.87,148.82,5.3]
[1718574148874,22.4853,148.87,148.82,5.3]
[1718574149674,22.4853,148.87,148.82,4.3]
[1718574150400,20.0,148.87,148.82,4.3]
[1718574150557,22.4853,148.87,148.82,4.3]
[1718574150758,22.4854,148.87,148.82,4.3]
[1718574151097,16.6148,148.91,148.81,0.17]
[1718574151098,7.4552,148.89,148.84,15.0767]
[1718574151382,24.8493,148.9,148.84,20.3767]
[1718574151680,2.485,148.89,148.84,20.3767]
[1718574151987,6.99426914,148.91,148.9,0.17]
[1718574152280,2.4836,148.98,148.92,0.17]
[1718574152583,22.4293,149.02,148.94,5.3]
[1718574152758,2.4833,149.0,148.95,5.3]
[1718574153157,22.6818,149.01,148.95,5.3]
[1718574153361,7.7831,149.01,148.95,5.3]
[1718574153683,7.7831,149.01,148.96,5.3]
[1718574153889,2.4831,149.01,148.96,5.3]
[1718574154192,7.4492,149.01,148.96,5.3]
[1718574155379,2.4832,149.0,148.96,5.3]
[1718574155582,2.4833,148.99,148.95,5.3]
[1718574155884,2.4833,149.0,148.95,5.3]
[1718574156289,6.98931543,149.04,148.95,5.3]
[1718574156290,4.9656,149.03,148.95,5.3]
[1718574156493,2.4828,149.03,148.98,5.3]
[1718574156861,2.4829,149.02,148.98,5.3]
[1718574157579,7.4487,149.02,148.98,5.3]
[1718574158583,2.4829,149.02,148.98,5.3]
[1718574158892,7.4487,149.02,148.98,5.3]
[1718574159885,2.4829,149.02,148.98,5.3]
[1718574160085,7.7828,149.03,148.98,5.3]
[1718574160258,20.1963,149.03,148.98,5.3]
[1718574160463,2.4829,149.02,148.98,5.3]
[1718574160963,2.4829,149.02,148.97,0.17]
[1718574161166,2.483,149.01,148.97,5.47]
[1718574161365,4.9651,149.04,148.98,5.3]
[1718574161567,24.8251,149.05,148.99,5.3]
[1718574161773,7.4474,149.05,149.0,5.3]
[1718574161989,28.98514073,149.09,148.97,6.5471]
[1718574162305,2.4824,149.05,149.01,5.3]
[1718574162666,7.4471,149.05,149.01,5.3]
[1718574163071,2.4824,149.05,149.01,5.3]
[1718574163289,7.4472,149.05,148.99,0.17]
[1718574163497,2.4824,149.05,148.99,0.34]
[1718574163801,24.8225,149.06,148.99,0.34]
[1718574164008,2.4823,149.05,148.99,0.34]
[1718574164485,20.1936,149.06,148.99,0.17]
[1718574164688,2.4823,149.05,148.99,0.17]
[1718574165198,12.7469,149.06,148.99,0.17]
[1718574165506,7.7823,149.06,148.99,0.17]
[1718574165660,12.7468,149.06,148.99,0.17]
[1718574165985,20.1934,149.06,148.99,0.17]
[1718574166203,12.7468,149.06,148.99,0.17]
[1718574166675,7.7823,149.06,148.99,0.17]
[1718574167880,5.3,149.06,148.99,0.17]
[1718574168107,2.482,149.07,148.99,0.34]
[1718574168401,12.4096,149.08,149.02,5.3]
[1718574168402,7.7819,149.08,149.02,5.3]
[1718574168695,5.3,149.08,149.02,5.3]
[1718574168910,7.7819,149.08,149.02,5.3]
[1718574169123,7.7819,149.08,148.99,0.34]
[1718574169124,23.2956,149.09,149.03,5.3]
[1718574169283,23.2956,149.09,148.99,0.34]
[1718574169284,4.9635,149.09,148.99,0.34]
[1718574169482,20.0,149.09,149.04,5.3]
[1718574169877,34.8905,149.09,149.01,0.17]
[1718574170117,2.4819,149.08,149.03,5.3]
[1718574170719,7.4456,149.08,149.03,5.3]
[1718574171093,2.4819,149.08,149.03,5.3]
[1718574172112,32.7454,149.09,149.03,5.3]
[1718574172613,40.1905,149.09,149.03,5.3]
[1718574172917,27.4452,149.09,149.04,5.3]
[1718574173284,2.4819,149.08,149.04,5.3]
[1718574173485,7.4458,149.08,149.03,5.3]
[1718574174008,32.7454,149.09,149.03,5.3]
[1718574174198,32.7454,149.09,149.02,20.7942]
[1718574176191,2.4819,149.08,149.02,20.7942]
[1718574176405,2.4819,149.08,149.03,5.3]
[1718574176803,7.4457,149.08,149.03,5.3]
[1718574177622,22.3371,149.08,149.03,5.3]
[1718574177790,22.339,149.07,149.02,15.4942]
[1718574177993,27.639,149.07,149.02,15.4942]
[1718574178198,2.4822,149.06,149.02,15.4942]
[1718574178492,7.4466,149.06,149.02,15.4942]
[1718574178714,2.4822,149.06,149.02,15.4942]
[1718574178913,2.4824,149.05,148.98,36.6439]
[1718574179097,14.8936,149.06,148.98,36.6439]
[1718574179305,14.8936,149.06,149.01,5.3]
[1718574179498,7.4472,149.05,148.98,36.6439]
[1718574179697,12.7469,149.06,149.0,5.3]
[1718574179920,7.4473,149.05,149.0,5.3]
[1718574180099,2.4825,149.05,149.0,5.3]
[1718574180301,17.3769,149.05,149.0,5.3]
[1718574180503,7.4474,149.05,149.0,5.3]
[1718574180818,2.4824,149.05,149.0,5.3]
[1718574180984,26.99016256,149.09,149.02,5.3]
[1718574181190,12.7458,149.08,149.02,5.3]
[1718574181421,20.1915,149.08,149.02,5.3]
[1718574181617,20.1916,149.08,149.02,5.3]
[1718574181822,2.482,149.07,149.02,5.3]
[1718574182123,4.9639,149.08,149.02,5.3]
[1718574182305,7.782,149.07,149.01,5.3]
[1718574182829,12.7461,149.07,149.01,5.3]
[1718574183624,7.782,149.07,149.01,5.3]
[1718574184628,5.3,149.07,149.01,5.3]
[1718574185127,24.8194,149.08,149.01,5.3]
[1718574185310,12.746,149.08,149.02,5.3]
[1718574186126,20.1916,149.08,149.02,5.3]
[1718574186596,2.482,149.07,149.02,5.3]
[1718574187092,7.4461,149.07,149.02,5.3]
[1718574187297,2.482,149.07,149.02,5.3]
[1718574187598,30.119,149.08,149.02,5.3]
[1718574187798,2.482,149.07,149.02,5.3]
[1718574188115,27.637,149.08,149.02,5.3]
[1718574188116,30.119,149.08,149.02,5.3]
[1718574188631,2.482,149.07,149.02,5.3]
[1718574190218,2.482,149.07,149.01,5.3]
[1718574191413,27.637,149.08,149.01,5.3]
[1718574191622,7.782,149.07,149.01,5.3]
[1718574192137,2.482,149.07,149.01,5.3]
[1718574192509,2.482,149.07,148.99,0.17]
[1718574192707,2.482,149.07,149.02,5.3]
[1718574193143,7.7819,149.08,149.02,5.3]
[1718574193326,20.1913,149.08,149.02,5.3]
[1718574193635,2.482,149.07,149.01,5.3]
[1718574194040,30.1189,149.08,149.01,5.3]
[1718574194338,2.482,149.07,149.01,5.3]
[1718574198539,24.8189,149.08,149.01,5.3]
[1718574198843,2.482,149.07,149.01,5.3]
[1718574200443,24.8189,149.08,149.01,5.3]
[1718574200926,2.482,149.07,149.01,5.3]
[1718574201431,22.3369,149.08,149.01,5.3]
[1718574201823,2.482,149.07,149.01,5.3]
[1718574202437,24.8189,149.08,149.01,5.3]
[1718574203515,2.482,149.07,149.01,5.3]
[1718574205421,24.8189,149.08,149.01,5.3]
[1718574206340,2.482,149.08,149.01,5.3]
[1718574206718,7.4458,149.08,149.01,5.3]
[1718574207627,14.8915,149.08,149.01,5.3]
[1718574207815,2.4826,149.04,148.99,0.68]
[1718574208047,25.3,149.09,148.99,20.68]
[1718574208227,7.4464,149.07,148.99,20.68]
[1718574208547,7.4464,149.07,149.0,5.3]
[1718574208751,5.3,149.07,149.01,0.17]
[1718574209047,5.3,149.07,149.01,5.47]
[1718574209848,7.782,149.08,149.02,5.3]
[1718574210419,7.782,149.08,149.0,0.17]
[1718574210624,2.482,149.07,149.0,0.68]
[1718574210820,2.4823,149.06,149.0,0.68]
[1718574211127,30.1194,149.08,149.02,0.17]
[1718574211420,12.7458,149.08,149.02,0.17]
[1718574211642,20.1914,149.08,149.02,0.17]
[1718574211849,7.782,149.08,149.02,0.17]
[1718574213133,7.782,149.08,149.02,5.47]
[1718574213328,5.3,149.08,149.02,5.47]
[1718574213543,7.7818,149.08,149.02,5.47]
[1718574214642,12.4104,149.07,149.02,0.17]
[1718574214840,30.1195,149.08,149.02,5.47]
[1718574215054,12.7459,149.08,149.02,5.47]
[1718574215246,2.4819,149.08,149.02,5.47]
[1718574215442,2.4818,149.08,149.02,5.47]
[1718574215638,5.3,149.08,149.02,5.47]
[1718574215849,7.7818,149.08,149.02,5.47]
[1718574216766,7.7818,149.08,149.03,5.3]
[1718574216933,7.7818,149.08,149.02,0.17]
[1718574217132,7.7818,149.08,149.02,5.47]
[1718574217861,5.3,149.08,149.02,5.47]
[1718574218239,10.2639,149.08,149.02,0.17]
[1718574218550,5.3,149.08,149.02,0.17]
[1718574218743,7.7819,149.08,149.02,0.17]
[1718574218948,7.7819,149.08,149.02,5.47]
[1718574219461,5.3,149.08,149.02,5.47]
[1718574219772,12.746,149.08,149.02,5.47]
[1718574220067,2.482,149.07,149.02,0.17]
[1718574220232,30.1191,149.08,149.02,0.17]
[1718574220562,7.782,149.08,149.02,0.17]
[1718574220768,5.3,149.07,149.02,0.17]
[1718574221254,7.782,149.07,149.01,5.64]
[1718574221481,5.3,149.07,149.01,5.3]
[1718574221673,7.4447,149.1,149.03,5.3]
[1718574221877,7.7817,149.09,149.03,5.3]
[1718574222082,7.7817,149.09,149.02,5.47]
[1718574222658,5.3,149.09,149.02,5.47]
[1718574222859,7.7817,149.09,149.02,5.47]
[1718574223168,5.3,149.08,149.02,0.17]
[1718574223395,5.3,149.08,149.02,5.47]
[1718574224665,7.7819,149.08,149.02,0.17]
[1718574225275,12.7456,149.08,149.01,5.3]
[1718574225483,5.3,149.07,149.01,5.3]
[1718574227361,5.3,149.07,149.0,0.17]
[1718574227362,6.98714806,149.12,149.06,5.3]
[1718574227553,5.3,149.12,149.06,5.3]
[1718574227755,5.3,149.12,149.04,0.17]
[1718574227985,22.3288,149.14,149.06,5.3]
[1718574228281,5.3,149.12,149.06,5.3]
[1718574228486,5.3,149.11,149.06,5.3]
[1718574228663,7.4451,149.09,149.04,0.17]
[1718574228855,5.3,149.1,149.04,5.47]
[1718574229061,5.3,149.1,149.04,5.3]
[1718574229298,7.7815,149.1,149.03,15.7094]
[1718574229590,5.3,149.1,149.04,5.3]
[1718574230490,7.4444,149.11,149.04,5.3]
[1718574230491,5.3,149.09,149.04,5.3]
[1718574230684,4.9622,149.13,149.04,0.17]
[1718574230864,5.3,149.1,149.05,5.3]
[1718574232099,5.3,149.1,149.04,0.17]
[1718574232402,5.3,149.1,149.05,5.3]
[1718574233763,5.3,149.1,149.04,0.17]
[1718574234324,5.3,149.1,149.05,5.3]
[1718574235113,5.3,149.1,149.04,5.47]
[1718574239389,5.3,149.1,149.04,0.17]
[1718574239584,5.3,149.1,149.04,5.47]
[1718574240183,2.4812,149.12,149.04,0.17]
[1718574240393,2.4812,149.12,149.05,5.3]
[1718574240715,2.4815,149.1,149.03,15.7094]
[1718574240895,27.9159,149.11,149.03,15.7094]
[1718574240896,23.1231,149.11,149.03,15.7094]
[1718574241223,5.3,149.08,149.03,15.7094]
[1718574241512,5.3,149.09,149.03,21.0094]
[1718574243807,5.3,149.09,149.03,15.7094]
[1718574243985,5.3,149.09,149.03,21.0094]
[1718574245298,5.3,149.09,149.04,5.3]
[1718574247488,7.4432,149.13,149.05,5.3]
[1718574247696,7.4432,149.13,149.06,5.3]
[1718574247697,2.4811,149.13,149.06,5.3]
[1718574247899,5.3,149.12,149.06,5.3]
[1718574248314,7.7812,149.12,149.06,5.3]
[1718574248609,5.3,149.11,149.06,5.3]
[1718574249121,5.3,149.11,149.05,5.3]
[1718574249496,7.7814,149.11,149.05,5.3]
[1718574249798,5.3,149.11,149.05,5.3]
[1718574249988,5.3,149.1,149.05,5.3]
[1718574250204,5.3,149.1,149.03,15.7094]
[1718574250394,5.3,149.1,149.05,5.3]
[1718574251103,5.3,149.09,149.04,5.3]
[1718574251707,2.4814,149.11,149.04,5.3]
[1718574252019,5.3,149.09,149.04,5.3]
[1718574252393,5.3,149.1,149.04,5.3]
[1718574253616,5.3,149.1,149.03,15.7094]
[1718574253924,5.3,149.1,149.04,5.3]
[1718574257024,6.97469812,149.16,149.05,15.8343]
[1718574257206,5.3,149.13,149.05,15.8343]
[1718574257407,5.3,149.14,149.08,5.3]
[1718574257618,5.3,149.12,149.07,5.3]
[1718574257832,5.3,149.13,149.07,5.3]
[1718574258123,5.3,149.12,149.07,5.3]
[1718574258537,5.3,149.13,149.07,5.3]
[1718574259240,5.3,149.13,149.05,15.8343]
[1718574259409,5.3,149.12,149.07,5.3]
[1718574259735,5.3,149.12,149.05,15.8343]
[1718574259736,5.3,149.12,149.05,17.17588505]
[1718574259935,5.3,149.12,149.05,15.8343]
[1718574261426,5.3,149.12,149.06,5.3]
[1718574262203,5.3,149.11,149.06,5.3]
[1718574268946,5.3,149.11,149.05,21.1343]
[1718574269947,5.3,149.11,149.05,15.8343]
[1718574270121,5.3,149.11,149.05,21.1343]
[1718574270443,5.3,149.11,149.05,15.8343]
[1718574270647,5.3,149.11,149.05,21.1343]
[1718574271940,5.3,149.11,149.05,15.8343]
[1718574272145,5.3,149.11,149.05,21.1343]
[1718574273247,5.3,149.11,149.05,15.8343]
[1718574273736,5.3,149.11,149.05,21.1343]
[1718574274245,5.3,149.11,149.05,15.8343]
[1718574274751,5.3,149.11,149.05,21.1343]
[1718574277255,5.3,149.1,149.05,15.8343]
[1718574277555,2.4811,149.13,149.05,15.8343]
[1718574277724,5.3,149.1,149.05,15.8343]
[1718574278660,5.3,149.1,149.04,0.17]
[1718574278661,5.3,149.1,149.03,13.11143646]
[1718574278823,0.17,149.12,149.02,21.5597]
[1718574279022,5.3,149.08,149.02,26.8597]
[1718574279549,5.3,149.08,149.03,5.3]
[1718574280462,20.51,149.12,149.03,5.3]
[1718574280642,5.3,149.1,149.04,5.3]
[1718574281038,5.3,149.1,149.03,0.17]
[1718574281238,5.3,149.09,149.03,5.47]
[1718574282042,5.3,149.09,149.03,0.17]
[1718574282241,5.3,149.09,149.03,5.47]
[1718574282856,22.6512,149.12,149.03,5.3]
[1718574282857,2.4814,149.11,149.03,5.3]
[1718574283064,5.3,149.09,149.02,21.5597]
[1718574283559,5.3,149.08,149.02,26.8597]
[1718574285654,5.3,149.09,149.03,5.3]
[1718574285856,5.3,149.09,149.02,21.5597]
[1718574286061,5.3,149.09,149.03,5.3]
[1718574286672,5.3,149.09,149.02,21.5597]
[1718574286958,5.3,149.09,149.03,5.3]
[1718574287757,5.3,149.09,149.02,21.5597]
[1718574287955,5.3,149.09,149.03,5.3]
[1718574289160,5.3,149.09,149.04,5.3]
[1718574290148,5.3,149.09,149.03,5.3]
[1718574290341,20.1905,149.09,149.03,5.3]
[1718574290653,5.3,149.08,149.02,20.8012]
[1718574292564,5.3,149.07,149.01,5.3]
[1718574292860,5.3,149.07,148.99,0.17]
[1718574293065,5.3,149.07,149.01,5.3]
[1718574293358,5.3,149.06,149.01,5.3]
[1718574294236,6.98773764,149.11,149.02,21.7079]
[1718574294565,20.0,149.12,149.04,5.3]
[1718574294566,25.3,149.1,149.04,5.3]
[1718574295856,25.3,149.1,149.02,16.4079]
[1718574296243,5.3,149.09,149.02,16.4079]
[1718574296558,25.3,149.1,149.04,5.3]
[1718574297157,25.3,149.1,149.02,16.4079]
[1718574297567,25.3,149.1,149.04,5.3]
[1718574298958,25.3,149.1,149.05,5.3]
[1718574299351,27.7815,149.1,149.05,5.3]
[1718574299561,25.3,149.1,149.05,5.3]
[1718574300566,20.0,149.1,149.05,5.3]
[1718574300744,25.3,149.1,149.05,5.3]
[1718574300943,20.0,149.1,149.05,5.3]
[1718574301150,27.7815,149.1,149.05,5.3]
[1718574301353,32.7446,149.1,149.05,5.3]
[1718574301544,47.634,149.1,149.05,5.3]
[1718574301751,50.1156,149.1,149.05,5.3]
[1718574302160,22.4816,149.1,149.05,5.3]
[1718574302345,32.7447,149.1,149.05,5.3]
[1718574303042,40.1893,149.1,149.05,5.3]
[1718574303363,40.1893,149.1,149.04,5.3]
[1718574303992,7.7817,149.09,149.03,5.47]
[1718574304286,19.72043135,149.09,149.03,5.47]
[1718574304656,14.75703135,149.09,149.03,5.47]
[1718574305199,14.75703135,149.09,149.03,0.17]
[1718574305399,14.75703135,149.09,149.03,5.47]
[1718574305998,7.7817,149.09,149.03,5.47]
[1718574307955,35.3939,149.1,149.03,5.47]
[1718574308285,7.7817,149.09,149.03,5.47]
[1718574310266,12.7451,149.09,149.03,5.47]
[1718574312798,2.4819,149.08,149.03,5.3]
[1718574313385,7.7819,149.08,149.02,21.7079]
[1718574314086,22.3358,149.09,149.03,5.3]
[1718574314087,7.7817,149.09,149.03,5.3]
[1718574314469,12.7451,149.09,149.03,5.3]
[1718574315394,12.7452,149.09,149.03,5.3]
[1718574315886,7.4452,149.09,149.03,5.3]
[1718574316088,7.7817,149.09,149.03,5.3]
[1718574316396,2.4817,149.09,149.03,5.3]
[1718574316595,7.7817,149.09,149.03,5.3]
[1718574317666,12.7451,149.09,149.03,5.3]
[1718574317865,60.2101,149.1,149.03,5.3]
[1718574318061,7.7817,149.09,149.03,5.3]
[1718574318568,2.4817,149.09,149.03,5.3]
[1718574318789,63.0285,149.1,149.03,5.3]
[1718574319089,2.4817,149.09,149.03,5.3]
[1718574319600,35.3939,149.1,149.03,5.3]
[1718574319766,5.3,149.09,149.03,5.3]
[1718574322795,7.7817,149.09,149.03,5.3]
[1718574323195,27.4448,149.1,149.04,5.3]
[1718574323390,32.7448,149.1,149.04,5.3]
[1718574323606,2.4817,149.09,149.04,5.3]
[1718574323809,32.7448,149.1,149.04,5.3]
[1718574324395,34.8895,149.1,149.04,5.3]
[1718574324580,40.1895,149.1,149.04,5.3]
[1718574324968,2.4817,149.09,149.04,5.3]
[1718574328997,7.4451,149.09,149.04,5.3]
[1718574330097,12.7451,149.09,149.03,5.47]
[1718574331001,20.1902,149.09,149.03,5.47]
[1718574331580,20.1903,149.09,149.03,5.47]
[1718574332519,2.4819,149.08,149.02,16.4079]
[1718574332683,30.1172,149.09,149.03,5.3]
[1718574333706,27.6354,149.09,149.03,5.3]
[1718574333914,12.7452,149.09,149.03,5.3]
[1718574334113,4.9638,149.08,149.02,16.4079]
[1718574334281,14.8914,149.08,149.03,5.3]
[1718574334478,7.4458,149.08,149.03,5.3]
[1718574335883,2.482,149.08,149.03,5.3]
[1718574341086,2.4818,149.09,149.04,5.3]
[1718574342217,2.4818,149.09,149.03,5.3]
[1718574343706,7.4452,149.09,149.02,16.4079]
[1718574344015,7.4452,149.09,149.03,5.3]
[1718574345697,2.4818,149.09,149.03,5.3]
[1718574348119,7.7818,149.09,149.03,5.3]
[1718574352793,12.7452,149.09,149.03,5.3]
[1718574353001,7.4452,149.09,149.03,5.3]
[1718574353309,12.7452,149.09,149.03,5.3]
[1718574355023,5.3,149.09,149.03,5.3]
[1718574355235,7.7817,149.09,149.03,5.3]
[1718574355735,12.7451,149.09,149.03,5.3]
[1718574357044,7.4451,149.09,149.03,5.3]
[1718574357240,12.7451,149.09,149.03,5.3]
[1718574357833,7.7817,149.09,149.03,5.3]
[1718574358517,2.4817,149.09,149.03,5.3]
[1718574358750,2.4817,149.09,149.02,5.47]
[1718574360538,2.4817,149.09,149.03,5.3]
[1718574361124,22.452,149.1,149.04,0.17]
[1718574361807,22.452,149.1,149.04,5.47]
[1718574362331,27.752,149.1,149.04,5.47]
[1718574362535,22.452,149.1,149.04,5.47]
[1718574362731,22.7889,149.1,149.04,5.47]
[1718574362938,27.752,149.1,149.04,5.47]
[1718574363138,2.4817,149.09,149.02,0.17]
[1718574363338,7.4451,149.09,149.03,5.3]
[1718574363531,12.7451,149.09,149.02,5.47]
[1718574364443,7.7817,149.09,149.02,5.47]
[1718574364621,5.3,149.09,149.02,5.47]
[1718574365144,7.7817,149.09,149.02,5.47]
[1718574366242,5.3,149.09,149.02,5.47]
[1718574367236,7.7817,149.09,149.02,5.47]
[1718574368038,5.3,149.09,149.02,5.47]
[1718574368745,7.7817,149.09,149.02,5.47]
[1718574368948,5.3,149.09,149.02,5.47]
[1718574370644,22.4522,149.1,149.02,5.47]
[1718574370842,5.3,149.09,149.02,5.47]
[1718574371938,29.8968,149.1,149.02,5.47]
[1718574372153,5.3,149.09,149.02,5.47]
[1718574375363,17.4889,149.1,149.02,5.47]
[1718574375575,5.3,149.09,149.02,5.47]
[1718574380840,17.4889,149.1,149.02,5.47]
[1718574381161,5.3,149.09,149.02,5.47]
[1718574382786,5.3,149.09,149.02,0.17]
[1718574382961,5.3,149.09,149.02,5.81]
[1718574385762,22.452,149.1,149.02,5.81]
[1718574385950,5.3,149.09,149.02,5.81]
[1718574391164,22.7889,149.1,149.02,5.81]
[1718574392867,27.752,149.1,149.02,5.81]
[1718574397354,27.752,149.1,149.02,0.51]
[1718574398674,35.1966,149.1,149.02,0.51]
[1718574399989,7.7816,149.1,149.02,0.51]
[1718574400458,24.8147,149.11,149.03,15.3728]
[1718574400658,7.7815,149.1,149.04,0.17]
[1718574400869,5.3,149.1,149.04,0.17]
[1718574401072,7.7815,149.1,149.04,0.17]
[1718574407799,12.7446,149.1,149.04,0.17]
[1718574412611,20.1892,149.1,149.04,0.17]
[1718574413597,12.7446,149.1,149.04,0.17]
[1718574413799,5.3,149.09,149.04,0.17]
[1718574419342,7.7815,149.11,149.04,0.17]
[1718574419503,7.7815,149.11,149.04,0.51]
[1718574420029,20.1883,149.11,149.04,0.51]
[1718574420918,5.3,149.1,149.04,0.51]
[1718574423809,7.7815,149.1,149.04,0.51]
[1718574426737,5.3,149.1,149.04,0.51]
[1718574427310,7.7815,149.1,149.04,0.51]
[1718574432251,2.4815,149.1,149.04,0.51]
[1718574432646,7.7815,149.1,149.04,0.51]
[1718574433648,5.3,149.09,149.04,0.51]
[1718574434147,7.7815,149.1,149.04,0.51]
[1718574443360,12.7446,149.1,149.04,0.51]
[1718574447673,2.4815,149.1,149.04,0.51]
[1718574447827,7.7815,149.1,149.04,0.51]
[1718574454860,12.7446,149.1,149.04,0.51]
[1718574455856,7.7815,149.1,149.04,0.51]
[1718574457771,12.7446,149.1,149.04,0.51]
[1718574462772,5.3,149.09,149.04,0.51]
[1718574464564,2.4812,149.12,149.06,15.258]
[1718574464767,21.869045,149.13,149.08,5.3]
[1718574465063,7.7812,149.13,149.08,5.3]
[1718574465261,2.4812,149.12,149.08,5.3]
[1718574465463,30.1107,149.13,149.08,5.3]
[1718574465771,30.1106,149.13,149.08,5.3]
[1718574467135,30.1106,149.13,149.07,6.64143559]
[1718574467341,30.1106,149.13,149.08,1.34138937]
[1718574467550,24.8106,149.13,149.08,1.34138937]
[1718574467761,30.1106,149.13,149.08,1.34138937]
[1718574467945,2.4811,149.13,149.08,1.34138937]
[1718574468144,7.7811,149.13,149.08,1.34138937]
[1718574468675,2.4811,149.13,149.08,1.34138937]
[1718574468850,7.7811,149.13,149.08,1.34138937]
[1718574469054,5.3,149.13,149.08,1.34138937]
[1718574469848,7.781,149.13,149.08,1.34138937]
[1718574470387,24.8095,149.14,149.08,1.34138937]
[1718574470675,5.3,149.13,149.08,1.34138937]
[1718574472471,5.3,149.13,149.08,5.3]
[1718574472675,24.8095,149.14,149.09,1.34127742]
[1718574472676,7.4429,149.14,149.09,1.34127742]